fUSD/lending_fUSD_20240223
["ID","MTS","AMOUNT","RATE_DAILY","PERIOD"]
[314976067,1708710642489,-500.0,0.0002833,2]
[314976068,1708710642499,-500.0,0.0002833,2]
[314976069,1708710642509,-500.0,0.0002833,2]
[314976070,1708710642519,-500.0,0.0002833,2]
[314976071,1708710642529,-624.47,0.0002833,2]
[314976072,1708710642539,-500.0,0.0002833,2]
[314976073,1708710642549,-500.0,0.0002833,2]
[314976074,1708710642559,-589.37,0.0002833,2]
[314976075,1708710642569,-500.0,0.0002833,2]
[314976076,1708710642580,-500.0,0.0002833,2]
[314976077,1708710642590,-500.0,0.0002833,2]
[314976078,1708710642600,-500.0,0.0002833,2]
[314976079,1708710642610,-500.0,0.0002833,2]
[314976080,1708710642621,-554.75,0.0002833,2]
[314976081,1708710642631,-500.0,0.0002833,2]
[314976082,1708710642640,-588.71802182,0.0002833,2]
[314976083,1708710642650,-500.0,0.0002833,2]
[314976084,1708710642660,-500.0,0.0002833,2]
[314976085,1708710642673,-500.0,0.0002833,2]
[314976086,1708710642682,-500.0,0.0002833,2]
[314976087,1708710642693,-156.321914,0.00028331,2]
[314976088,1708710642702,-278.0,0.00028341,2]
[314976089,1708710642713,-521.91971757,0.00028349,2]
[314976090,1708710642723,-153.31768893,0.00028357,2]
[314976091,1708710642733,-1062.58235876,0.00028369,2]
[314976092,1708710642744,-329.68,0.0002837,2]
[314976093,1708710642754,-1350.14903785,0.00028377,2]
[314976094,1708710642764,-212.52118649,0.00028384,2]
[314976095,1708710642774,-162.29119657,0.00028403,2]
[314976096,1708710642784,-167.65885404,0.00028408,2]
[314976097,1708710642795,-160.0,0.00028412,2]
[314976098,1708710642805,-1173.31418889,0.00028433,2]
[314976099,1708710642814,-500.0,0.00028467,2]
[314976100,1708710642824,-584.28591608,0.00028467,2]
[314976101,1708710642834,-491.56,0.00028467,2]
[314976102,1708710642844,-500.0,0.00028467,2]
[314976103,1708710642854,-500.0,0.00028467,2]
[314976104,1708710642864,-500.0,0.00028467,2]
[314976106,1708710642874,-500.0,0.00028467,2]
[314976107,1708710642885,-310.25,0.00028467,2]
[314976108,1708710642894,-503.8,0.00028467,2]
[314976109,1708710642904,-356.16,0.00028467,2]
[314976110,1708710642916,-263.61352765,0.00028467,2]
[314976125,1708710643306,-153.38,0.00028467,2]
[314976126,1708710643316,-500.0,0.00028467,2]
[314976127,1708710643325,-592.19,0.00028467,2]
[314976128,1708710643335,-500.0,0.00028467,2]
[314976129,1708710643346,-500.0,0.00028467,2]
[314976130,1708710643355,-624.47,0.00028467,2]
[314976131,1708710643364,-500.0,0.00028467,2]
[314976132,1708710643374,-500.0,0.00028467,2]
[314976133,1708710643383,-500.0,0.00028467,2]
[314976134,1708710643392,-185.98,0.00028467,2]
[314976135,1708710643401,-500.0,0.00028467,2]
[314976136,1708710643412,-500.0,0.00028467,2]
[314976137,1708710643423,-500.0,0.00028467,2]
[314976138,1708710643433,-500.0,0.00028467,2]
[314976140,1708710643442,-500.0,0.00028467,2]
[314976142,1708710643451,-649.87,0.00028467,2]
[314976144,1708710643460,-500.0,0.00028467,2]
[314976145,1708710643470,-153.50007692,0.0002848,2]
[314976148,1708710643480,-212.52118649,0.00028487,2]
[314976150,1708710643489,-212.52118649,0.00028488,2]
[314976151,1708710643499,-306.17,0.000285,2]
[314976153,1708710643508,-1173.31418889,0.00028501,2]
[314976154,1708710643517,-1350.14903785,0.00028505,2]
[314976156,1708710643527,-155.59752133,0.00028505,2]
[314976159,1708710643537,-163.70167318,0.00028516,2]
[314976160,1708710643546,-212.52118649,0.00028549,2]
[314976163,1708710643557,-1350.14903785,0.0002855,2]
[314976164,1708710643566,-152.6064863,0.00028555,2]
[314976166,1708710643576,-26173.97294743,0.0002856,2]
[314976167,1708710643585,-154.07502588,0.00028571,2]
[314976168,1708710643595,-1350.14903785,0.00028581,2]
[314976169,1708710643604,-573.11929172,0.00028603,2]
[314976170,1708710643614,-500.0,0.00028604,2]
[314976171,1708710643623,-500.0,0.00028604,2]
[314976172,1708710643632,-500.0,0.00028604,2]
[314976173,1708710643641,-500.0,0.00028604,2]
[314976174,1708710643651,-503.8,0.00028604,2]
[314976175,1708710643660,-500.0,0.00028604,2]
[314976176,1708710643671,-500.0,0.00028604,2]
[314976177,1708710643680,-500.0,0.00028604,2]
[314976178,1708710643690,-469.84,0.00028604,2]
[314976179,1708710643699,-500.0,0.00028604,2]
[314976180,1708710643708,-624.47,0.00028604,2]
[314976181,1708710643717,-500.0,0.00028604,2]
[314976182,1708710643726,-500.0,0.00028604,2]
[314976183,1708710643735,-500.0,0.00028604,2]
[314976184,1708710643744,-500.0,0.00028604,2]
[314976185,1708710643754,-500.0,0.00028604,2]
[314976186,1708710643763,-500.0,0.00028604,2]
[314976187,1708710643772,-1500.0,0.00028623,2]
[314976188,1708710643781,-174.78,0.00028663,2]
[314976189,1708710643791,-1500.0,0.00028664,2]
[314976190,1708710643800,-163.70167318,0.00028723,2]
[314976191,1708710643810,-158.00337686,0.00028731,2]
[314976192,1708710643819,-157.0837495,0.00028738,2]
[314976193,1708710643829,-500.0,0.00028741,2]
[314976194,1708710643839,-500.0,0.00028741,2]
[314976195,1708710643848,-500.0,0.00028741,2]
[314976196,1708710643858,-503.8,0.00028741,2]
[314976197,1708710643866,-500.0,0.00028741,2]
[314976198,1708710643876,-500.0,0.00028741,2]
[314976199,1708710643885,-624.47,0.00028741,2]
[314976200,1708710643894,-500.0,0.00028741,2]
[314976201,1708710643904,-500.0,0.00028741,2]
[314976202,1708710643913,-500.0,0.00028741,2]
[314976203,1708710643925,-500.0,0.00028741,2]
[314976204,1708710643934,-500.0,0.00028741,2]
[314976205,1708710643943,-500.0,0.00028741,2]
[314976206,1708710643952,-4739.58495038,0.00028742,2]
[314976207,1708710643961,-1404.43,0.00028748,2]
[314976208,1708710643971,-1404.43,0.00028748,2]
[314976209,1708710643980,-1404.43,0.00028748,2]
[314976210,1708710643989,-1404.43,0.00028748,2]
[314976211,1708710643998,-1404.43,0.00028748,2]
[314976212,1708710644007,-1404.43,0.00028748,2]
[314976213,1708710644016,-1404.43,0.00028748,2]
[314976214,1708710644025,-1404.43,0.00028748,2]
[314976215,1708710644034,-1404.43,0.00028748,2]
[314976216,1708710644043,-1404.43,0.00028748,2]
[314976217,1708710644053,-1404.43,0.00028748,2]
[314976218,1708710644062,-1404.43,0.00028748,2]
[314976219,1708710644071,-1404.43,0.00028748,2]
[314976220,1708710644080,-1404.43,0.00028748,2]
[314976221,1708710644090,-1404.43,0.00028748,2]
[314976222,1708710644099,-1404.51535452,0.00028748,2]
[314976223,1708710644109,-153.31768893,0.00028752,2]
[314976224,1708710644119,-1000.0,0.00028764,7]
[314976225,1708710644128,-2663.4670582,0.00028764,7]
[314976226,1708710644137,-243.82366239,0.00028764,6]
[314976227,1708710644146,-252.56594137,0.00028764,6]
[314976228,1708710644156,-413.01,0.00028767,2]
[314976229,1708710644167,-413.01,0.00028767,2]
[314976230,1708710644176,-413.01,0.00028767,2]
[314976231,1708710644185,-1173.31418889,0.00028772,2]
[314976232,1708710644194,-155.85963337,0.00028783,2]
[314976233,1708710644203,-7225.52686454,0.00028789,4]
[314976234,1708710644213,-10743.2867,0.0002879,2]
[314976235,1708710644222,-817.85584091,0.00028793,2]
[314976236,1708710644232,-238.4041937,0.00028793,4]
[314976237,1708710644241,-761.56520006,0.00028796,4]
[314976238,1708710644251,-7225.52686454,0.00028796,4]
[314976239,1708710644260,-238.4041937,0.00028796,4]
[314976240,1708710644270,-200.0,0.000288,2]
[314976241,1708710644280,-7225.52686454,0.00028807,4]
[314976242,1708710644289,-708.67519451,0.00028807,4]
[314976243,1708710644300,-708.67519451,0.00028808,4]
[314976244,1708710644311,-7225.52686454,0.00028812,4]
[314976245,1708710644320,-708.67519451,0.00028818,4]
[314976246,1708710644330,-156.57354396,0.00028822,2]
[314976247,1708710644342,-708.67519451,0.00028827,4]
[314976248,1708710644353,-451.03496115,0.0002883,2]
[314976249,1708710644362,-238.4041937,0.00028832,4]
[314976250,1708710644372,-761.56520006,0.00028838,4]
[314976251,1708710644381,-30465.45228255,0.00028842,2]
[314976252,1708710644390,-4000.0,0.00028842,2]
[314976253,1708710644400,-18118.06560083,0.00028844,2]
[314976254,1708710644410,-533.64103734,0.00028845,4]
[314976255,1708710644421,-56531.94404403,0.00028849,4]
[314976256,1708710644429,-238.4041937,0.00028851,4]
[314976257,1708710644439,-533.64103734,0.00028856,4]
[314976258,1708710644448,-56531.94404403,0.00028856,4]
[314976259,1708710644457,-1062.58235876,0.00028861,2]
[314976260,1708710644465,-212.52118649,0.00028863,2]
[314976261,1708710644474,-962.69358471,0.00028863,4]
[314976262,1708710644483,-9576.69181753,0.00028863,4]
[314976263,1708710644492,-2564.45039448,0.00028866,4]
[314976264,1708710644501,-2564.45039448,0.00028866,4]
[314976265,1708710644510,-451.03496115,0.00028868,2]
[314976266,1708710644518,-9576.69181753,0.00028869,4]
[314976267,1708710644527,-1500.0,0.0002887,2]
[314976268,1708710644537,-504.79557585,0.00028872,6]
[314976269,1708710644546,-720.39951356,0.00028872,6]
[314976270,1708710644555,-9576.69181753,0.00028873,4]
[314976271,1708710644564,-761.56520006,0.00028876,4]
[314976272,1708710644574,-670.36842723,0.00028877,6]
[314976273,1708710644584,-7225.52686454,0.00028878,4]
[314976274,1708710644593,-238.4041937,0.00028878,4]
[314976275,1708710644602,-500.0,0.00028878,2]
[314976276,1708710644611,-500.0,0.00028878,2]
[314976277,1708710644620,-500.0,0.00028878,2]
[314976278,1708710644629,-503.8,0.00028878,2]
[314976279,1708710644639,-500.0,0.00028878,2]
[314976280,1708710644649,-624.47,0.00028878,2]
[314976281,1708710644658,-500.0,0.00028878,2]
[314976282,1708710644669,-500.0,0.00028878,2]
[314976283,1708710644678,-500.0,0.00028878,2]
[314976284,1708710644687,-761.56520006,0.00028878,4]
[314976285,1708710644696,-761.56520006,0.00028878,4]
[314976286,1708710644705,-962.69358471,0.00028878,4]
[314976287,1708710644715,-13669.91568977,0.00028879,2]
[314976288,1708710644724,-1173.31418889,0.00028879,2]
[314976289,1708710644733,-985.84,0.0002888,2]
[314976290,1708710644742,-2425.83145423,0.00028885,6]
[314976291,1708710644751,-9059.03280036,0.00028885,6]
[314976292,1708710644761,-573.11929172,0.00028886,2]
[314976293,1708710644771,-1340.73685457,0.00028886,2]
[314976294,1708710644780,-2564.45039448,0.00028888,4]
[314976295,1708710644789,-189.08077734,0.00028889,2]
[314976296,1708710644798,-500.0,0.00028889,2]
[314976297,1708710644807,-153.94587009,0.00028889,2]
[314976298,1708710644817,-500.0,0.00028889,2]
[314976299,1708710644826,-528.81235943,0.00028889,2]
[314976300,1708710644835,-500.0,0.00028889,2]
[314976301,1708710644845,-500.0,0.00028889,2]
[314976302,1708710644854,-500.0,0.00028889,2]
[314976303,1708710644863,-509.60861112,0.00028889,2]
[314976304,1708710644873,-500.0,0.00028889,2]
[314976305,1708710644882,-508.35268641,0.00028889,2]
[314976306,1708710644891,-500.0,0.00028889,2]
[314976307,1708710644900,-500.0,0.00028889,2]
[314976308,1708710644909,-500.0,0.00028889,2]
[314976309,1708710644920,-500.0,0.00028889,2]
[314976310,1708710644929,-502.84,0.00028889,2]
[314976311,1708710644938,-500.0,0.00028889,2]
[314976312,1708710644948,-500.0,0.00028889,2]
[314976313,1708710644957,-500.0,0.00028889,2]
[314976314,1708710644967,-555.57,0.00028889,2]
[314976315,1708710644976,-573.0,0.00028889,2]
[314976316,1708710644985,-500.0,0.00028889,2]
[314976317,1708710644994,-500.0,0.00028889,2]
[314976318,1708710645003,-500.0,0.00028889,2]
[314976319,1708710645012,-500.0,0.00028889,2]
[314976320,1708710645021,-500.0,0.00028889,2]
[314976321,1708710645031,-257.36059205,0.00028889,2]
[314976322,1708710645040,-500.0,0.00028889,2]
[314976323,1708710645049,-500.0,0.00028889,2]
[314976324,1708710645058,-500.0,0.00028889,2]
[314976325,1708710645067,-277.97,0.00028889,2]
[314976326,1708710645076,-500.0,0.00028889,2]
[314976327,1708710645086,-500.0,0.00028889,2]
[314976328,1708710645095,-500.0,0.00028889,2]
[314976329,1708710645104,-215.99,0.00028889,2]
[314976330,1708710645114,-500.0,0.00028889,2]
[314976331,1708710645122,-500.0,0.00028889,2]
[314976332,1708710645131,-525.81981005,0.00028889,2]
[314976333,1708710645140,-500.0,0.00028889,2]
[314976334,1708710645150,-514.93686514,0.00028889,2]
[314976335,1708710645159,-500.0,0.00028889,2]
[314976336,1708710645169,-500.0,0.00028889,2]
[314976337,1708710645178,-343.11882267,0.00028889,2]
[314976338,1708710645187,-500.0,0.00028889,2]
[314976339,1708710645196,-500.0,0.00028889,2]
[314976340,1708710645205,-500.0,0.00028889,2]
[314976341,1708710645214,-500.0,0.00028889,2]
[314976342,1708710645224,-500.0,0.00028889,2]
[314976343,1708710645233,-500.0,0.00028889,2]
[314976344,1708710645243,-500.0,0.00028889,2]
[314976345,1708710645253,-155.7589469,0.00028889,2]
[314976346,1708710645263,-500.0,0.00028889,2]
[314976347,1708710645272,-500.0,0.00028889,2]
[314976348,1708710645282,-500.0,0.00028889,2]
[314976349,1708710645292,-500.0,0.00028889,2]
[314976350,1708710645302,-500.0,0.00028889,2]
[314976351,1708710645312,-500.0,0.00028889,2]
[314976352,1708710645321,-473.85459898,0.00028889,2]
[314976353,1708710645331,-500.0,0.00028889,2]
[314976354,1708710645344,-500.0,0.00028889,2]
[314976355,1708710645356,-500.0,0.00028889,2]
[314976356,1708710645366,-500.0,0.00028889,2]
[314976357,1708710645375,-500.0,0.00028889,2]
[314976358,1708710645385,-634.52,0.00028889,2]
[314976359,1708710645395,-500.0,0.00028889,2]
[314976360,1708710645405,-312.84262784,0.00028889,2]
[314976361,1708710645416,-500.0,0.00028889,2]
[314976362,1708710645427,-500.0,0.00028889,2]
[314976363,1708710645436,-500.0,0.00028889,2]
[314976364,1708710645446,-500.0,0.00028889,2]
[314976365,1708710645456,-500.0,0.00028889,2]
[314976366,1708710645465,-500.0,0.00028889,2]
[314976367,1708710645474,-500.0,0.00028889,2]
[314976368,1708710645484,-500.0,0.00028889,2]
[314976369,1708710645493,-500.0,0.00028889,2]
[314976370,1708710645502,-500.0,0.00028889,2]
[314976371,1708710645512,-500.0,0.00028889,2]
[314976372,1708710645522,-500.0,0.00028889,2]
[314976373,1708710645531,-500.0,0.00028889,2]
[314976374,1708710645541,-583.81,0.00028889,2]
[314976375,1708710645550,-500.0,0.00028889,2]
[314976376,1708710645559,-500.0,0.00028889,2]
[314976377,1708710645569,-500.0,0.00028889,2]
[314976378,1708710645579,-500.0,0.00028889,2]
[314976379,1708710645588,-500.0,0.00028889,2]
[314976380,1708710645597,-500.0,0.00028889,2]
[314976381,1708710645607,-500.0,0.00028889,2]
[314976382,1708710645616,-500.0,0.00028889,2]
[314976383,1708710645626,-507.75924902,0.00028889,2]
[314976384,1708710645635,-53476.16328488,0.0002889,6]
[314976385,1708710645645,-6834.95784483,0.00028891,6]
[314976386,1708710645654,-910.65609364,0.00028893,6]
[314976387,1708710645663,-533.64103734,0.00028893,4]
[314976388,1708710645673,-708.67519451,0.00028895,4]
[314976389,1708710645683,-1821.31218739,0.00028897,2]
[314976390,1708710645692,-225.51748052,0.00028899,6]
[314976391,1708710645702,-1350.14903785,0.00028899,2]
[314976392,1708710645711,-533.64103734,0.00028899,4]
[314976393,1708710645720,-56531.94404403,0.000289,4]
[314976394,1708710645729,-171.37682513,0.000289,2]
[314976395,1708710645739,-271.02859942,0.00028901,2]
[314976396,1708710645748,-13669.91568977,0.00028902,2]
[314976397,1708710645757,-1009.59115181,0.00028906,2]
[314976398,1708710645766,-159.51672723,0.00028907,2]
[314976399,1708710645775,-271.02859942,0.00028926,2]
[314976400,1708710645785,-1350.14903785,0.00028938,2]
[314976401,1708710645794,-1340.73685457,0.0002894,2]
[314976402,1708710645803,-1173.31418889,0.00028943,2]
[314976403,1708710645813,-155.57626886,0.00028944,2]
[314976404,1708710645822,-4851.66290856,0.00028945,2]
[314976405,1708710645831,-385.0,0.00028949,2]
[314976406,1708710645840,-840.039,0.00028949,2]
[314976407,1708710645850,-390.0,0.00028949,2]
[314976408,1708710645859,-241.659,0.00028949,2]
[314976409,1708710645869,-484.401,0.00028949,2]
[314976410,1708710645878,-150.0,0.00028949,2]
[314976411,1708710645887,-106952.32656987,0.00028956,2]
[314976412,1708710645897,-1821.31218739,0.0002896,2]
[314976413,1708710645905,-1440.79902723,0.00028963,2]
[314976414,1708710645916,-573.11929172,0.00028969,2]
[314976415,1708710645926,-1009.59115181,0.00028986,2]
[314976416,1708710645935,-1440.79902723,0.00028998,2]
[314976417,1708710645944,-21530.50325425,0.00029,2]
[314976418,1708710645953,-500.0,0.00029,2]
[314976419,1708710645962,-500.0,0.00029,2]
[314976420,1708710645972,-500.0,0.00029,2]
[314976421,1708710645981,-500.0,0.00029,2]
[314976422,1708710645991,-500.0,0.00029,2]
[314976423,1708710646000,-500.0,0.00029,2]
[314976424,1708710646009,-500.0,0.00029,2]
[314976425,1708710646018,-500.0,0.00029,2]
[314976426,1708710646027,-500.0,0.00029,2]
[314976427,1708710646036,-500.0,0.00029,2]
[314976428,1708710646045,-500.0,0.00029,2]
[314976429,1708710646055,-500.0,0.00029,2]
[314976430,1708710646064,-500.0,0.00029,2]
[314976431,1708710646073,-500.0,0.00029,2]
[314976432,1708710646082,-500.0,0.00029,2]
[314976433,1708710646092,-500.0,0.00029,2]
[314976434,1708710646101,-500.0,0.00029,2]
[314976435,1708710646110,-500.0,0.00029,2]
[314976436,1708710646119,-500.0,0.00029,2]
[314976437,1708710646128,-500.0,0.00029,2]
[314976438,1708710646137,-500.0,0.00029,2]
[314976439,1708710646147,-500.0,0.00029,2]
[314976440,1708710646156,-150.0,0.00029,2]
[314976441,1708710646165,-354.46,0.00029,2]
[314976442,1708710646174,-212.52118649,0.00029,2]
[314976443,1708710646183,-850.0,0.00029,3]
[314976444,1708710646193,-155.14487319,0.00029001,2]
[314976445,1708710646202,-204.0,0.00029007,8]
[314976446,1708710646211,-500.0,0.00029015,2]
[314976447,1708710646221,-500.0,0.00029015,2]
[314976448,1708710646230,-500.0,0.00029015,2]
[314976449,1708710646239,-503.8,0.00029015,2]
[314976450,1708710646249,-500.0,0.00029015,2]
[314976451,1708710646259,-624.47,0.00029015,2]
[314976452,1708710646268,-500.0,0.00029015,2]
[314976453,1708710646278,-500.0,0.00029015,2]
[314976454,1708710646288,-156.57354396,0.00029023,2]
[314976455,1708710646297,-500.0,0.00029026,2]
[314976456,1708710646309,-500.0,0.00029026,2]
[314976457,1708710646318,-396.40384658,0.00029026,2]
[314976458,1708710646494,-500.0,0.00029026,2]
[314976459,1708710646505,-500.0,0.00029026,2]
[314976460,1708710646514,-500.0,0.00029026,2]
[314976461,1708710646524,-500.0,0.00029026,2]
[314976462,1708710646534,-500.0,0.00029026,2]
[314976463,1708710646544,-502.84,0.00029026,2]
[314976465,1708710646553,-500.0,0.00029026,2]
[314976467,1708710646563,-195.07,0.00029026,2]
[314976469,1708710646573,-500.0,0.00029026,2]
[314976471,1708710646583,-555.57,0.00029026,2]
[314976473,1708710646592,-573.0,0.00029026,2]
[314976475,1708710646602,-500.0,0.00029026,2]
[314976477,1708710646611,-500.0,0.00029026,2]
[314976479,1708710646620,-504.68744449,0.00029026,2]
[314976481,1708710646630,-500.0,0.00029026,2]
[314976483,1708710646640,-500.0,0.00029026,2]
[314976486,1708710646650,-165.24523666,0.00029026,2]
[314976487,1708710646658,-500.0,0.00029026,2]
[314976489,1708710646670,-500.0,0.00029026,2]
[314976491,1708710646679,-560.98561985,0.00029026,2]
[314976493,1708710646689,-298.94539835,0.00029026,2]
[314976495,1708710646699,-500.0,0.00029026,2]
[314976497,1708710646708,-535.88,0.00029026,2]
[314976499,1708710646718,-500.0,0.00029026,2]
[314976501,1708710646727,-500.0,0.00029026,2]
[314976503,1708710646736,-500.0,0.00029026,2]
[314976504,1708710646746,-500.0,0.00029026,2]
[314976505,1708710646755,-500.0,0.00029026,2]
[314976506,1708710646766,-500.0,0.00029026,2]
[314976507,1708710646775,-500.0,0.00029026,2]
[314976508,1708710646785,-500.0,0.00029026,2]
[314976509,1708710646796,-200.38,0.00029026,2]
[314976510,1708710646805,-500.0,0.00029026,2]
[314976511,1708710646815,-500.0,0.00029026,2]
[314976512,1708710646825,-431.2,0.00029026,2]
[314976513,1708710646834,-500.0,0.00029026,2]
[314976514,1708710646843,-500.0,0.00029026,2]
[314976515,1708710646853,-500.0,0.00029026,2]
[314976516,1708710646864,-292.16374957,0.00029026,2]
[314976517,1708710646873,-500.0,0.00029026,2]
[314976518,1708710646883,-500.0,0.00029026,2]
[314976519,1708710646893,-500.0,0.00029026,2]
[314976520,1708710646902,-500.0,0.00029026,2]
[314976521,1708710646912,-500.0,0.00029026,2]
[314976522,1708710646923,-500.0,0.00029026,2]
[314976523,1708710646932,-276.01005492,0.00029026,2]
[314976524,1708710646942,-500.0,0.00029026,2]
[314976525,1708710646952,-448.38,0.00029026,2]
[314976526,1708710646962,-500.0,0.00029026,2]
[314976527,1708710646972,-500.0,0.00029026,2]
[314976528,1708710646981,-500.0,0.00029026,2]
[314976529,1708710646990,-500.0,0.00029026,2]
[314976530,1708710647000,-1350.14903785,0.00029055,2]
[314976531,1708710647009,-150.0,0.00029068,2]
[314976532,1708710647019,-212.52118649,0.00029083,2]
[314976533,1708710647028,-151.0,0.00029093,120]
[314976534,1708710647037,-154.02083881,0.00029105,2]
[314976535,1708710647047,-151.49591866,0.00029113,2]
[314976536,1708710647056,-150.0,0.0002912,2]
[314976537,1708710647065,-150.0,0.00029124,2]
[314976538,1708710647075,-1062.58235876,0.00029134,2]
[314976539,1708710647084,-150.0,0.00029136,2]
[314976540,1708710647094,-150.0,0.00029147,2]
[314976541,1708710647103,-150.0,0.00029149,2]
[314976542,1708710647112,-500.0,0.00029152,2]
[314976543,1708710647121,-500.0,0.00029152,2]
[314976544,1708710647131,-500.0,0.00029152,2]
[314976545,1708710647140,-503.8,0.00029152,2]
[314976546,1708710647149,-500.0,0.00029152,2]
[314976547,1708710647159,-624.47,0.00029152,2]
[314976548,1708710647169,-617.74735537,0.00029152,2]
[314976549,1708710647178,-500.0,0.00029152,2]
[314976550,1708710647187,-155.59752133,0.00029155,2]
[314976551,1708710647197,-154.02083881,0.00029158,2]
[314976552,1708710647206,-150.0,0.00029163,2]
[314976553,1708710647215,-500.0,0.00029163,2]
[314976554,1708710647225,-500.0,0.00029163,2]
[314976555,1708710647235,-500.0,0.00029163,2]
[314976556,1708710647245,-500.0,0.00029163,2]
[314976557,1708710647254,-500.0,0.00029163,2]
[314976558,1708710647263,-500.0,0.00029163,2]
[314976559,1708710647273,-500.0,0.00029163,2]
[314976560,1708710647282,-502.84,0.00029163,2]
[314976561,1708710647292,-500.0,0.00029163,2]
[314976562,1708710647302,-500.0,0.00029163,2]
[314976563,1708710647312,-555.57,0.00029163,2]
[314976564,1708710647321,-573.0,0.00029163,2]
[314976565,1708710647331,-281.73391836,0.00029163,2]
[314976566,1708710647343,-500.0,0.00029163,2]
[314976567,1708710647353,-500.0,0.00029163,2]
[314976568,1708710647363,-500.0,0.00029163,2]
[314976569,1708710647373,-179.3628326,0.00029163,2]
[314976570,1708710647382,-500.0,0.00029163,2]
[314976571,1708710647392,-500.0,0.00029163,2]
[314976572,1708710647401,-277.65,0.00029163,2]
[314976573,1708710647411,-500.0,0.00029163,2]
[314976574,1708710647423,-500.0,0.00029163,2]
[314976575,1708710647433,-500.0,0.00029163,2]
[314976576,1708710647443,-161.32,0.00029163,2]
[314976577,1708710647452,-500.0,0.00029163,2]
[314976578,1708710647463,-500.0,0.00029163,2]
[314976579,1708710647472,-500.0,0.00029163,2]
[314976580,1708710647482,-511.03,0.00029163,2]
[314976581,1708710647492,-500.0,0.00029163,2]
[314976582,1708710647502,-500.0,0.00029163,2]
[314976583,1708710647512,-336.1,0.00029163,2]
[314976584,1708710647522,-500.0,0.00029163,2]
[314976585,1708710647531,-216.8,0.00029163,2]
[314976586,1708710647541,-500.0,0.00029163,2]
[314976587,1708710647551,-500.0,0.00029163,2]
[314976588,1708710647560,-500.0,0.00029163,2]
[314976589,1708710647570,-500.0,0.00029163,2]
[314976590,1708710647580,-500.0,0.00029163,2]
[314976591,1708710647589,-500.0,0.00029163,2]
[314976592,1708710647599,-500.0,0.00029163,2]
[314976593,1708710647609,-191.0,0.00029181,5]
[314976594,1708710647618,-154.98329938,0.00029186,2]
[314976595,1708710647628,-152.6064863,0.00029199,2]
[314976596,1708710647637,-159.87929936,0.00029208,2]
[314976597,1708710647646,-155.14487319,0.00029208,2]
[314976598,1708710647655,-1404.85563975,0.00029225,2]
[314976599,1708710647665,-150.0,0.00029241,2]
[314976600,1708710647674,-159.69428409,0.00029246,2]
[314976601,1708710647683,-200.0,0.0002925,10]
[314976602,1708710647692,-1500.0,0.00029251,2]
[314976603,1708710647702,-150.0,0.00029263,2]
[314976604,1708710647711,-200.0,0.00029264,2]
[314976605,1708710647720,-800.0,0.00029264,2]
[314976606,1708710647729,-200.0,0.00029264,2]
[314976607,1708710647738,-150.0,0.00029268,2]
[314976608,1708710647748,-151.49591866,0.0002928,2]
[314976609,1708710647757,-224.95228755,0.00029284,2]
[314976610,1708710647767,-150.0,0.00029286,2]
[314976611,1708710647776,-500.0,0.00029289,2]
[314976612,1708710647785,-500.0,0.00029289,2]
[314976613,1708710647794,-500.0,0.00029289,2]
[314976614,1708710647804,-503.8,0.00029289,2]